Cogmind - Beta 15 --- EXPLORER MODE // 2025.06.16 @ 14:15:19 Player: BigChungusGaming Result: Destroyed by D-53 Grenadier with Mini Grenade Launcher Performance ------------- Evolutions (0) 0 Regions Visited (4) 800 Robots Destroyed (10) 50 Value Destroyed (267) 267 Prototype IDs (0) 0 Alien Tech Used (0) 0 Bonus (0) 0 TOTAL SCORE: 1117 Bonus ------- None Cogmind --------- Core Integrity 0/250 Matter 300/300 Energy 100/100 System Corruption 1% Temperature Cool (0) Movement Treading (160) Location -9/Mines Parts ------- > --- POWER (1) -------- (None) > --- PROPULSION (3) --- Improved Treads Improved Treads > --- UTILITY (2) ------ Medium Storage Unit > --- WEAPON (2) ------- (None) > --- INVENTORY (10) --- Light Treads Light Treads Improved Treads Heat Sink Improved Heat Sink Compact Matter Pod (150) Spread Laser Spread Laser Shotgun Shotgun Peak State ------------ > --- POWER ------------ Light Nuclear Core > --- PROPULSION ------- Improved Treads Improved Treads Improved Treads > --- UTILITY ---------- Medium Storage Unit Compact Matter Pod > --- WEAPON ----------- Shotgun Shotgun > --- INVENTORY -------- Light Treads Light Treads Improved Treads Heat Sink Compact Matter Pod Light Armor Plating Spread Laser Spread Laser Shotgun Shotgun [Rating: 18] Favorites ----------- Power Light Ion Engine Engine Light Ion Engine Power Core Light Nuclear Core Propulsion Improved Treads Treads Improved Treads Utility Medium Storage Unit Storage Medium Storage Unit Protection Light Armor Plating Weapon Shotgun Ballistic Gun Shotgun Build | -11 -10 -10 -10 -9 ------- Run | Yrd Mat Min Exi Min Slots Evolved 1 | . 1 . . . Power . | . . . . . Propulsion 1 | . 1 . . . Utility . | . . . . . Weapon . | . . . . . Parts Attached 15 | 7 6 1 . 1 Power 2 | 1 . . . 1 Engine 1 | 1 . . . . Core 1 | . . . . 1 Reactor . | . . . . . Propulsion 6 | 2 4 . . . Treads 6 | 2 4 . . . Leg . | . . . . . Wheel . | . . . . . Hover . | . . . . . Flight . | . . . . . Utility 3 | 2 . 1 . . Device . | . . . . . Storage 2 | 1 . 1 . . Processor . | . . . . . Hackware . | . . . . . Protection 1 | 1 . . . . Artifact . | . . . . . Weapon 4 | 2 2 . . . Energy Gun . | . . . . . Energy Cannon . | . . . . . Ballistic Gun 4 | 2 2 . . . Ballistic Cannon . | . . . . . Launcher . | . . . . . Special Weapon . | . . . . . Impact Weapon . | . . . . . Slashing Weapon . | . . . . . Piercing Weapon . | . . . . . Special Melee Weapon . | . . . . . Unidentified Prototypes . | . . . . . Parts Lost 5 | . . . . 5 Power 1 | . . . . 1 Propulsion 1 | . . . . 1 Utility 1 | . . . . 1 Weapon 2 | . . . . 2 Highest Loss Streak 5 | . . . . 5 To Critical Strikes . | . . . . . Average Backups 8 | 1 7 10 10 10 Power . | . . . . . Propulsion 2 | . 2 3 3 3 Utility 2 | . . 2 3 3 Weapon 4 | 1 4 4 4 4 Tool/Special . | . . . . . Unused Backups 11 | . 2 2 . 7 Power . | . . . . . Propulsion . | . . . . . Utility 3 | . . . . 3 Weapon 8 | . 2 2 . 4 Tool/Special . | . . . . . Average Slot Usage (%) 98 | . 96 99 100 97 Engine 10 | . 12 12 12 6 Treads 35 | . 33 37 37 36 Storage 20 | . 12 24 25 24 Protection 4 | . 12 . . . Ballistic Gun 24 | . 25 25 25 24 Peak Build Rating 18 | 7 14 16 16 18 Average Rating 14 | 5 11 15 16 16 On Entrance 10 | . 7 14 16 16 Naked Turns . | . . . . . Heaviest Build 22 | 20 22 20 20 22 Greatest Support 69 | 40 69 69 69 69 Greatest Overweight (x) . | . . . . . Average Overweight (x) . | . . . . . Largest Inventory Capacity 10 | 10 10 10 10 10 Average Capacity 9 | 8 10 10 10 10 Most Carried 10 | 3 10 10 10 10 Average Carried 8 | 1 7 9 10 9 Final Capacity 10 | 10 10 10 10 10 Final Carried 10 | 1 10 10 10 10 Class Distribution -------------------- 100% | Hacker-Mutant Dominant Class ---------------- Hacker-Mutant | -10/Materials Hacker-Mutant | -10/Mines Hacker-Mutant | -10/Exiles Hacker-Mutant | -9/Mines Resources | -11 -10 -10 -10 -9 ----------- Run | Yrd Mat Min Exi Min Matter Collected 478 | 209 233 18 . 18 Remotely . | . . . . . Salvage Created 325 | . 266 18 . 41 Parts 18 | . 14 3 . 1 Haulers Intercepted . | . . . . . Recyclers Shooed . | . . . . . Parts Field Recycled . | . . . . . Retrieved Matter . | . . . . . Parts Self-Destructed . | . . . . . Prevented . | . . . . . Kills | -11 -10 -10 -10 -9 ------- Run | Yrd Mat Min Exi Min Combat Hostiles Destroyed 9 | . 7 1 . 1 Guns 9 | . 7 1 . 1 Classes Destroyed 3 | . 2 . . 1 Tunneler 1 | . . . . 1 Swarmer 3 | . 2 1 . . Grunt 6 | . 5 . . 1 Best Kill Streak 2 | . 2 1 . 1 Combat Bots Only 2 | . 2 1 . 1 Max Kills in Single Turn 1 | . 1 1 . 1 Gunslinging . | . . . . . Exploded . | . . . . . Melee . | . . . . . Uniques/NPCs Destroyed . | . . . . . Combat | -11 -10 -10 -10 -9 -------- Run | Yrd Mat Min Exi Min Hostile Shots Fired 93 | . 32 5 . 56 Missed 22 | . 10 3 . 9 Hits 71 | . 22 2 . 47 Melee 2 | . . . . 2 Projectile 69 | . 22 2 . 45 AOE 28 | . . . . 28 Critical Strikes 2 | . 1 . . 1 Damage Taken 1111 | . 176 8 . 927 Core 267 | . 35 3 . 229 Absorbed by Shields . | . . . . . Ignored by Resistances 658 | . 109 7 . 542 Core Remaining (%) 100 | 100 . . . . Volleys Fired 20 | . 18 1 . 1 Largest 2 | . 2 2 . 2 Hottest 46 | . 46 46 . 46 Shots Fired 40 | . 36 2 . 2 Gun 40 | . 36 2 . 2 Cannon . | . . . . . Launcher . | . . . . . Special . | . . . . . Kinetic 40 | . 36 2 . 2 Thermal . | . . . . . Explosive . | . . . . . Electromagnetic . | . . . . . Robot Hit Streak 33 | . 33 1 . 2 Robot Miss Streak 1 | . 1 1 . . Penetration Max . | . . . . . Secondary Targets 2 | . 2 . . . Max Gunslinging Chain 1 | . 1 . . . Shots Hit Robots 35 | . 33 1 . 1 Core Hits 17 | . 13 1 . 3 Critical Kills . | . . . . . Critical Parts Destroyed . | . . . . . Critical Strikes . | . . . . . Melee Attacks . | . . . . . Impact . | . . . . . Slashing . | . . . . . Piercing . | . . . . . Sneak Attacks . | . . . . . Combat Hostiles . | . . . . . Follow-up Attacks . | . . . . . Damage Inflicted 442 | . 405 12 . 25 Guns 438 | . 405 12 . 21 Cannons . | . . . . . Explosions . | . . . . . Melee . | . . . . . Ramming 4 | . . . . 4 Kinetic 438 | . 405 12 . 21 Thermal . | . . . . . Explosive . | . . . . . Electromagnetic . | . . . . . Impact . | . . . . . Slashing . | . . . . . Piercing . | . . . . . Highest Corruption 1 | . . . . 1 Average Corruption 1 | . . . . 1 Corruption Purged . | . . . . . Corruption Blocked . | . . . . . Effects 1 | . . . . 1 Heat Flow Errors 1 | . . . . 1 Overload Shots . | . . . . . Overflow Damage . | . . . . . Projectiles . | . . . . . Explosions . | . . . . . Melee . | . . . . . Knockbacks . | . . . . . Impact . | . . . . . Kinetic . | . . . . . Secondary . | . . . . . Self-Inflicted Damage . | . . . . . Shots . | . . . . . Rammed . | . . . . . Targets Rammed 1 | . . . . 1 Kicked . | . . . . . Crushed 1 | . . . . 1 Highest Temperature 174 | . 24 . . 174 Average Temperature 30 | . 8 . . 73 Received Heat Transfer 175 | . 135 . . 40 Siege Activations . | . . . . . Martial Activations . | . . . . . Shielding Activations . | . . . . . Robots Disrupted . | . . . . . Combat Hostiles . | . . . . . Robots Corrupted . | . . . . . Combat Hostiles . | . . . . . Parts Fried . | . . . . . Impact Corruptions . | . . . . . Robots Melted . | . . . . . Combat Hostiles . | . . . . . Parts Melted . | . . . . . Heat Transferred . | . . . . . Parts Sabotaged . | . . . . . Parts Stolen . | . . . . . Parts Stripped . | . . . . . Power Chain Reactions . | . . . . . Alert | -11 -10 -10 -10 -9 ------- Run | Yrd Mat Min Exi Min Maximum Alert Level . | . . . . . Low Security (%) 100 | 100 100 100 . 100 Level 1 . | . . . . . Level 2 . | . . . . . Level 3 . | . . . . . Level 4 . | . . . . . Level 5 . | . . . . . High Security . | . . . . . Max Security . | . . . . . Peak Influence 55 | . 55 30 . 20 Initial . | . . . . . Average 3 | . 6 3 . 1 Influence Increases 241 | . 171 30 . 40 Destroy 0b10 Robot/C 180 | . 140 20 . 20 Destroy 0b10 Robot/NC 5 | . . . . 5 Destroy Leader 40 | . 30 10 . . Destroy Structure 1 | . 1 . . . Lose Combat Pursuer 15 | . . . . 15 Influence Decreases 241 | . 171 30 . 40 Time Decay 226 | . 171 30 . 25 Lost Part 15 | . . . . 15 Squads Dispatched . | . . . . . Investigation . | . . . . . Extermination . | . . . . . Reinforcement . | . . . . . Assault . | . . . . . Garrison . | . . . . . Intercept . | . . . . . Searches Triggered . | . . . . . Construction Impeded . | . . . . . Haulers Reinforced . | . . . . . Active Scanning Responses . | . . . . . Cargo Convoy Interrupts . | . . . . . Stealth | -11 -10 -10 -10 -9 --------- Run | Yrd Mat Min Exi Min Distress Signals 1 | . 1 . . . Communications Jammed . | . . . . . Distress Signals . | . . . . . Times Spotted 21 | . 9 2 . 10 Peak Tracking Total 8 | . 2 2 . 8 Tactical Retreats 1 | . . . . 1 Traps | -11 -10 -10 -10 -9 ------- Run | Yrd Mat Min Exi Min Traps Triggered 1 | . 1 . . . Indirectly . | . . . . . Trap Hack Attempts . | . . . . . Triggered . | . . . . . Disarmed . | . . . . . Reprogrammed . | . . . . . Reused . | . . . . . Traps Extracted . | . . . . . Installed . | . . . . . Triggered . | . . . . . Machines | -11 -10 -10 -10 -9 ---------- Run | Yrd Mat Min Exi Min Machines Disabled . | . . . . . Max in Single Turn . | . . . . . Machines Repaired . | . . . . . Machines Dismantled . | . . . . . Machines Sabotaged . | . . . . . Overloaded Fab Kills . | . . . . . Hacking | -11 -10 -10 -10 -9 --------- Run | Yrd Mat Min Exi Min Machines Accessed 4 | . . . 4 . Terminals . | . . . . . Fabricators . | . . . . . Repair Stations . | . . . . . Recycling Units . | . . . . . Scanalyzers . | . . . . . Garrison Access . | . . . . . Total Hacks 4 | . . . 4 . Successful 4 | . . . 4 . Failed . | . . . . . Catastrophic . | . . . . . Database Lockouts . | . . . . . Manual . | . . . . . Terminals . | . . . . . Fabricators . | . . . . . Repair Stations . | . . . . . Recycling Units . | . . . . . Scanalyzers . | . . . . . Garrison Access . | . . . . . Terminal Hacks 4 | . . . 4 . Record 4 | . . . 4 . Fabricator Hacks . | . . . . . Repair Station Hacks . | . . . . . Recycling Unit Hacks . | . . . . . Scanalyzer . | . . . . . Garrison Access Hacks . | . . . . . Unauthorized Hacks . | . . . . . Terminals . | . . . . . Fabricators . | . . . . . Repair Stations . | . . . . . Recycling Units . | . . . . . Scanalyzers . | . . . . . Garrison Access . | . . . . . Data Cores Recovered . | . . . . . Used . | . . . . . Hacking Detections . | . . . . . Full Trace Events . | . . . . . Feedback Events . | . . . . . Feedback Blocked . | . . . . . Robot Schematics Acquired . | . . . . . Robots Built . | . . . . . Authchips . | . . . . . Time . | . . . . . Total Robot Build Rating . | . . . . . Part Schematics Acquired . | . . . . . Parts Built . | . . . . . Authchips . | . . . . . Time . | . . . . . Total Part Build Rating . | . . . . . Parts Repaired . | . . . . . Time . | . . . . . Parts Recycled . | . . . . . Recycled Matter . | . . . . . Retrieved Matter . | . . . . . Retrieved Components . | . . . . . Parts Scanalyzed . | . . . . . Part Schematics Acquired . | . . . . . Parts Damaged . | . . . . . Bothacking | -11 -10 -10 -10 -9 ------------ Run | Yrd Mat Min Exi Min Used RIF Installer . | . . . . . Robots Hacked . | . . . . . Non-combat . | . . . . . Combat . | . . . . . Robot Hacks Applied . | . . . . . Relay Couplers Released . | . . . . . Fabnet Peak Effective % . | . . . . . Robots Rewired . | . . . . . Allies Hacked . | . . . . . Hacks Repelled . | . . . . . Allies | -11 -10 -10 -10 -9 -------- Run | Yrd Mat Min Exi Min Total Allies . | . . . . . Largest Group . | . . . . . Highest-Rated Group . | . . . . . Highest-Rated Ally . | . . . . . Total Orders . | . . . . . Ally Attacks . | . . . . . Total Damage . | . . . . . Kills . | . . . . . Allies Corrupted . | . . . . . Allies Melted . | . . . . . Intel | -11 -10 -10 -10 -9 ------- Run | Yrd Mat Min Exi Min Active Infowar (turns) . | . . . . . Robot Analysis Total . | . . . . . Derelict Logs Recovered 1 | . . 1 . . Drone Launches . | . . . . . Drone Recoveries . | . . . . . Exploration | -11 -10 -10 -10 -9 ------------- Run | Yrd Mat Min Exi Min Turns Passed 2635 | 126 847 249 889 524 Spaces Moved 1585 | 77 485 150 556 317 Core 9 | 9 . . . . Treads 1576 | 68 485 150 556 317 Legs . | . . . . . Wheels . | . . . . . Hover . | . . . . . Flight . | . . . . . Fastest Speed 50 | 50 160 160 160 160 Average Speed 159 | 147 160 160 160 160 Slowest Speed 160 | 160 160 160 160 160 Overloaded Moves . | . . . . . Propulsion Burnouts . | . . . . . Robots Hopped . | . . . . . Potential Cave-ins . | . . . . . Cave-ins Triggered . | . . . . . Exploration Rate (%) 39 | 5 40 26 91 35 Regions Visited 4 Branch Regions 3 Pre-discovered Areas . | . . . . . Known Exits Taken 4 | 1 1 1 1 . Unknown Exits Taken . | . . . . . Scrap Searched . | . . . . . Spaces Dug . | . . . . . Terrain Destroyed . | . . . . . Melee . | . . . . . Projectile . | . . . . . AOE . | . . . . . Terrain Rammed . | . . . . . Walls Destroyed . | . . . . . Machines Disabled . | . . . . . Actions | -11 -10 -10 -10 -9 --------- Run | Yrd Mat Min Exi Min Total 1654 | 87 522 158 555 332 Wait 13 | 1 . 3 . 9 Move 1581 | 76 484 149 555 317 Hop . | . . . . . Pick Up 15 | 3 10 1 . 1 Fast Attach 7 | 5 1 1 . . Attach 2 | 2 . . . . Detach 1 | . . 1 . . Swap 6 | . 5 . . 1 Drop 8 | . 4 2 . 2 Fire 20 | . 18 1 . 1 Melee . | . . . . . Ram . | . . . . . Kick . | . . . . . Crush 1 | . . . . 1 Escape Stasis . | . . . . . Rewire . | . . . . . Trap . | . . . . . Miscellaneous . | . . . . . Route ------- -11/Scrapyard -10/Materials (discovered 2 exits: *Mat / *Min) -10/Mines -10/Exiles -9/Mines (discovered 1 exit: *Mat) History --------- Turn | Location | Event 14 | -11/Scrapyard | Identified exit to Materials 14 | -11/Scrapyard | Discovered exit to Materials (range 15) 127 | -11/Scrapyard | Entered Materials 127 | -10/Materials | Evolved 1 slot: Propulsion x1 184 | -10/Materials | Identified exit to Mines 184 | -10/Materials | Discovered exit to Mines (range 5) 318 | -10/Materials | Build established: Hacker-Mutant 743 | -10/Materials | Identified exit to Materials 743 | -10/Materials | Discovered exit to Materials (range 16) 827 | -10/Materials | Derelicts attacked the area 974 | -10/Materials | Entered Mines 998 | -10/Mines | Learned Materials emergency access door positions 1199 | -10/Mines | Deemed a non-threat by the Exiles lab entrance 1200 | -10/Mines | Identified exit to Exiles 1200 | -10/Mines | Discovered exit to Exiles (range 5) 1223 | -10/Mines | Entered Exiles 1223 | -10/Exiles | Found Exiles lab abandoned 1694 | -10/Exiles | Identified exit to Mines 1694 | -10/Exiles | Discovered exit to Mines (range 14) 2112 | -10/Exiles | Entered Mines 2144 | -9/Mines | Met a Derelict bent on vengeance 2428 | -9/Mines | Identified exit to Materials 2428 | -9/Mines | Discovered exit to Materials (range 8) 2557 | -9/Mines | Assembled infested the area 2562 | -9/Mines | Assisted by a Guerilla fighting off Assembled 2613 | -9/Mines | Core integrity fell below 50% 2624 | -9/Mines | Core integrity fell below 20% 2636 | -9/Mines | Destroyed by D-53 Grenadier with Mini Grenade Launcher Last Messages --------------- System corrupted: Heat flow error (+196). The unstable cave ceiling collapses. U-05 Engineer lays Concrete. U-05 Engineer destroyed. The unstable cave ceiling collapses. as-73179 destroyed. as-21798 destroyed. The unstable cave ceiling collapses. Shotgun destroyed. Imp. Treads destroyed. The unstable cave ceiling collapses. Shotgun destroyed. U-05 Engineer destroyed. The unstable cave ceiling collapses. U-05 Engineer lays Concrete. The unstable cave ceiling collapses. U-05 Engineer lays Concrete. U-05 Engineer builds a Wall. U-05 Engineer destroyed. The unstable cave ceiling collapses. Map ----- +----------------------------------------------------+ | ???????# ??????#### #?????????????? | | ????????# #??# ##????????????? | | ?????????# ## ##???????????? | | ?????????# #???????????? | | ????????## #???????????? | | ????????# % #???????????? | | ????????# ## ##???????????? | | ????????## ###???###??????? | | ?????????##### # ##??### ##?????? | | ???###???????# # #?## #?????? | | ??## ######## ##d # #?# #?????? | | ?## ## #### #??????? | | ?# # # #### ##??????? | | ?# %= #### ####???????? | | ??# ### ##?# ##??????????? | | ??## ##?## # #?## #???????????? | | ???###????## d ### ##?????##????? | | ???????????## ## ##?##### ##???? | | ????????????# ## #### #???? | | ????????????# # ## ## #???? | | ????????????# #????? | | ????????????# ##????? | | ????????????## ## ##?????? | | ?????????????# = ###### ##??????? | | ???????????#### |! # #????####???????? | | ???????????# @*= ####??????####?????? | | ???????????# ## % ####?###### #####?? | | ???????????# ##### % ### ##? | | ???????????# #?## ;### ## #? | | ???????????# ### ##?# ## | | ???????????# ##* ####### # | | ??# < ### [%% #????# # # | | ??# % % = ### #???# ## ## | | ??# """ ## ! ##??####???# ### ## | | ????"""???# ##?????????## ### % | | ??????????## ##??????????# ## | | ???????????####???????????# ## # | | ??????????????????????????# ## # | | ?????????????????????????# ## ## | | ?????????????????????????## # ##? | | ??????????????????????????###### ##?? | | ?????????????????????????????## ##?? | | ?????????????????????????????# #?? | | ?????????????????????????????# #?? | | ?????????????????????????????## ### ##?? | | ??????????????????????????????###??####??? | | ?????????????????????????????????????????? | | ?????????????????????????????????????????? | | | | | +----------------------------------------------------+ Best States ------------- Heat Dissipation 25 Energy Generation 14 Energy Capacity 160 Matter Stores 450 Matter Capacity 450 Sight Range 16 Terrain Scan Density 10 Armor Coverage 150 Resistance: KI 35 Resistance: TH 35 Resistance: EX 35 Resistance: EM 35 Resistance: I 35 Resistance: S 35 Resistance: P 35 Evasion (%) 50 Recoil Reduction 3 Offensive Hacking 20 Item Schematics ----------------- None Robot Schematics ------------------ None Fabricated ------------ Nothing Repaired ---------- Nothing Alien Tech Used ----------------- None Achievements -------------- None Challenges ------------ None Game ------ Seed ShockBiometalNetwork Manual? 0 Play Time 00:17:21 Cumulative 17.3 hours Start 2025.06.16 @ 13:59:28 End 2025.06.16 @ 14:15:19 Sessions 1 Manual Loads 0 Difficulty Explorer Special Mode None Game No. 23 Rogue 21 Adventurer 0 Explorer 2 Win Type - Total 0 Types 0/0/0/0/0/0/0/0/0/0 Lore% 12 Gallery% 20 Achievement% 21 Wizard Run 0 Options --------- Layout 1 ASCII 0 Keyboard 0 Movement Arrows Keybinds 0 Fullscreen 1 Font 32/SmallcapsGlow Map View 50x35 Zoom Use 0% Tactical HUD 0 Map Filters NONE Filters NONE Steam 1 RUN: 5b39a71a-996e-48c9-97cc-7b736a5f11b4